bitfinex/quotes_BTCUSD_20251012
["timestamp","ask_amount","ask_price","bid_price","bid_amount"]
[1760254211172,1.5535893,111890.0,111880.0,0.0014]
[1760254212109,1.5535893,111890.0,111880.0,0.02794]
[1760254212529,1.5167393,111890.0,111880.0,0.02794]
[1760254212725,1.5167393,111890.0,111880.0,0.03989]
[1760254212940,1.4907193,111890.0,111880.0,0.03989]
[1760254213154,0.85393875,111890.0,111880.0,0.09826536]
[1760254213345,1.50173072,111890.0,111880.0,0.09826536]
[1760254213493,0.85393875,111890.0,111880.0,0.09826536]
[1760254214520,0.85393875,111890.0,111880.0,0.09942884]
[1760254216438,0.85393875,111890.0,111880.0,0.07906348]
[1760254219555,2.15157829,111890.0,111880.0,0.07906348]
[1760254222123,2.19646829,111890.0,111880.0,0.01451348]
[1760254222327,4.1787498,111890.0,111880.0,0.00256348]
[1760254224709,4.40962598,111880.0,111870.0,1e-08]
[1760254224930,0.51877893,111870.0,111860.0,1e-08]
[1760254225173,0.51877893,111870.0,111850.0,0.07162362]
[1760254225174,0.51879492,111860.0,111850.0,0.07162362]
[1760254225374,4.49139794,111860.0,111850.0,0.07162362]
[1760254225586,0.1788109,111850.0,111840.0,0.0004]
[1760254225785,0.82728807,111850.0,111840.0,0.01235]
[1760254225968,0.85330807,111850.0,111840.0,0.03889]
[1760254226190,1.47576524,111850.0,111840.0,0.09104136]
[1760254226313,2.12424241,111850.0,111840.0,0.0769]
[1760254226524,2.15026241,111850.0,111840.0,0.03889]
[1760254226730,2.15026241,111850.0,111840.0,0.03902379]
[1760254227351,2.16913241,111850.0,111840.0,0.03902379]
[1760254227966,2.12424241,111850.0,111840.0,0.07703379]
[1760254228190,2.12424241,111850.0,111840.0,0.08768017]
[1760254228399,2.12424241,111850.0,111840.0,0.08868017]
[1760254228603,2.15026241,111850.0,111840.0,0.05067017]
[1760254229090,2.15026241,111850.0,111840.0,0.04102379]
[1760254229295,2.20598241,111850.0,111840.0,0.00253379]
[1760254232226,1.37869434,111850.0,111840.0,0.00253379]
[1760254232430,2.20598241,111850.0,111840.0,0.00253379]
[1760254232634,2.20598241,111850.0,111840.0,0.00486178]
[1760254233208,2.23289481,111850.0,111840.0,0.00486178]
[1760254235207,0.2874633,111850.0,111840.0,0.00486178]
[1760254235423,2.23289481,111850.0,111840.0,0.00486178]
[1760254235833,0.2874633,111850.0,111840.0,0.00486178]
[1760254236041,2.23289481,111850.0,111840.0,0.00486178]
[1760254236245,2.23289481,111850.0,111840.0,0.03140178]
[1760254236448,2.19604481,111850.0,111840.0,0.05378596]
[1760254237682,2.19604481,111850.0,111840.0,0.04490178]
[1760254237888,2.23427481,111850.0,111840.0,0.04490178]
[1760254238303,2.23427481,111850.0,111840.0,0.01836178]
[1760254239966,4.51970632,111850.0,111840.0,0.00486178]
[1760254240818,4.51970632,111850.0,111840.0,0.00286178]
[1760254243900,4.51970632,111850.0,111830.0,0.0004]
[1760254243901,0.51882689,111840.0,111830.0,0.0004]
[1760254244122,0.51882689,111840.0,111820.0,0.00048]
[1760254244123,0.17884288,111830.0,111820.0,0.00048]
[1760254244337,2.12427439,111830.0,111820.0,0.05304991]
[1760254244551,1.50271237,111830.0,111820.0,0.07834991]
[1760254244760,1.50271237,111830.0,111820.0,0.10714605]
[1760254244977,0.02691515,111830.0,111820.0,0.30389081]
[1760254245184,0.67539232,111830.0,111820.0,0.28600493]
[1760254245394,0.64847717,111830.0,111820.0,0.28600493]
[1760254245807,0.67538566,111830.0,111820.0,0.28600493]
[1760254246022,0.64847717,111830.0,111820.0,0.28600493]
[1760254246231,1.29695434,111830.0,111820.0,0.28600493]
[1760254247077,1.32386283,111830.0,111820.0,0.28700493]
[1760254247285,1.32386283,111830.0,111820.0,0.28800493]
[1760254247913,0.67538566,111830.0,111820.0,0.31815683]
[1760254254411,0.64847717,111830.0,111820.0,0.31815683]
[1760254254630,0.64847717,111830.0,111820.0,0.31932124]
[1760254255483,1.16730411,111840.0,111830.0,0.20899478]
[1760254255704,0.51882694,111840.0,111830.0,0.34282638]
[1760254256150,0.51882694,111840.0,111830.0,0.1639835]
[1760254257010,1.81578128,111840.0,111830.0,0.1639835]
[1760254260679,1.81578128,111840.0,111830.0,0.1111519]
[1760254261111,1.81578128,111840.0,111830.0,0.11173405]
[1760254265405,2.46425845,111840.0,111830.0,0.11173405]
[1760254267022,0.51882694,111840.0,111830.0,0.11173405]
[1760254267242,1.81578128,111840.0,111830.0,0.11173405]
[1760254267443,1.81578128,111840.0,111830.0,0.14530695]
[1760254269900,1.81578128,111840.0,111830.0,0.11173405]
[1760254274559,2.46425845,111840.0,111830.0,0.08158215]
[1760254274767,2.46425845,111840.0,111830.0,0.04487215]
[1760254274768,2.48845845,111840.0,111830.0,0.04487215]
[1760254277661,2.48845845,111840.0,111830.0,0.08279215]
[1760254278713,2.48845845,111840.0,111830.0,0.04487215]
[1760254280151,2.48845845,111840.0,111830.0,0.05478536]
[1760254280557,2.50660845,111840.0,111830.0,0.04487215]
[1760254281541,1.85926734,111840.0,111830.0,0.04487215]
[1760254281975,1.85926734,111840.0,111830.0,0.08279215]
[1760254282822,1.81691734,111840.0,111830.0,0.08279215]
[1760254283639,0.34,111840.0,111830.0,0.27951931]
[1760254283839,1.81691729,111840.0,111830.0,0.3091068]
[1760254284068,0.34,111840.0,111830.0,0.3091068]
[1760254284285,1.6380904,111840.0,111830.0,0.3091068]
[1760254284483,1.16787209,111840.0,111830.0,0.3091068]
[1760254284689,1.6380904,111840.0,111830.0,0.3091068]
[1760254285618,0.9890452,111840.0,111830.0,0.3091068]
[1760254286045,1.16787209,111840.0,111830.0,0.3091068]
[1760254286656,1.16787209,111840.0,111830.0,0.26163503]
[1760254287654,1.81691729,111840.0,111830.0,0.26163503]
[1760254288982,0.51882689,111840.0,111830.0,0.26163503]
[1760254289202,1.81691729,111840.0,111830.0,0.26163503]
[1760254291188,1.81691729,111840.0,111830.0,0.08279215]
[1760254293748,1.47691729,111840.0,111830.0,0.11435121]
[1760254296747,1.50111729,111840.0,111830.0,0.04487215]
[1760254296960,1.50111729,111840.0,111830.0,0.08203215]
[1760254296961,1.47691729,111840.0,111830.0,0.08203215]
[1760254297187,1.52115729,111840.0,111830.0,0.04487215]
[1760254297810,1.49517729,111840.0,111830.0,0.04389215]
[1760254298077,1.49517729,111840.0,111830.0,0.08105215]
[1760254298282,1.52115729,111840.0,111830.0,0.04389215]
[1760254298912,1.81691729,111840.0,111830.0,0.09455136]
[1760254305149,0.34,111840.0,111830.0,0.12470326]
[1760254305357,0.20130755,111850.0,111840.0,0.17882689]
[1760254305555,0.85035275,111850.0,111840.0,0.25408689]
[1760254305767,0.85035275,111850.0,111840.0,0.30370219]
[1760254306179,0.65000364,111850.0,111840.0,0.30370219]
[1760254306377,0.82881454,111850.0,111840.0,0.30370219]
[1760254307412,1.16881454,111850.0,111840.0,0.30370219]
[1760254307809,0.51976934,111850.0,111840.0,0.30370219]
[1760254308016,1.16881454,111850.0,111840.0,0.30370219]
[1760254308192,0.51976934,111850.0,111840.0,0.30370219]
[1760254308501,1.16881454,111850.0,111840.0,0.30370219]
[1760254308918,0.34095844,111850.0,111840.0,0.33385409]
[1760254309187,0.99000364,111850.0,111840.0,0.33485409]
[1760254309617,0.34095844,111850.0,111840.0,0.33485409]
[1760254310233,0.00095844,111850.0,111840.0,0.33585409]
[1760254310713,0.00095844,111850.0,111840.0,0.36085408]
[1760254312005,0.00082318,111850.0,111840.0,0.36085408]
[1760254314503,0.77643658,111870.0,111860.0,0.20894682]
[1760254314699,0.77643658,111870.0,111860.0,0.32542115]
[1760254315709,0.36739871,111870.0,111860.0,0.32542115]
[1760254315971,1.01644391,111870.0,111860.0,0.32542115]
[1760254316140,1.19522284,111870.0,111860.0,0.32542115]
[1760254316986,1.01644391,111870.0,111860.0,0.32542115]
[1760254317759,1.19522284,111870.0,111860.0,0.32542115]
[1760254318187,1.84426804,111870.0,111860.0,0.32542115]
[1760254318584,1.84426804,111870.0,111860.0,0.32642115]
[1760254318992,1.19522284,111870.0,111860.0,0.32742115]
[1760254319623,1.84426804,111870.0,111860.0,0.32742115]
[1760254319994,1.84543184,111870.0,111860.0,0.32742115]
[1760254320765,1.84543184,111870.0,111860.0,0.14862623]
[1760254320997,1.92792184,111870.0,111860.0,0.01613]
[1760254321182,1.92792184,111870.0,111860.0,0.002]
[1760254321795,1.92792184,111870.0,111860.0,0.001]
[1760254322025,0.17879492,111860.0,111850.0,0.05248]
[1760254322288,0.82784012,111860.0,111850.0,0.08917438]
[1760254322727,0.85474552,111860.0,111850.0,0.08917438]
[1760254323402,0.0269054,111860.0,111850.0,0.08917438]
[1760254323613,0.85474552,111860.0,111850.0,0.08917438]
[1760254324056,0.85474552,111860.0,111850.0,0.09017438]
[1760254324439,0.85474552,111860.0,111850.0,0.09117438]
[1760254324645,0.8543859,111860.0,111850.0,0.09117438]
[1760254327728,0.85496785,111860.0,111850.0,0.09117438]
[1760254332309,0.20628227,111860.0,111850.0,0.09117438]
[1760254332507,0.85496785,111860.0,111850.0,0.09117438]
[1760254343667,1.50364899,111860.0,111850.0,0.09117438]
[1760254346676,0.36748735,111860.0,111850.0,0.28786637]
[1760254346856,1.66485407,111860.0,111850.0,0.26998528]
[1760254347115,0.36748735,111860.0,111850.0,0.30013718]
[1760254347340,0.67617071,111860.0,111850.0,0.30013718]
[1760254347565,1.01617071,111860.0,111850.0,0.30013718]
[1760254351010,0.36748735,111860.0,111850.0,0.30013718]
[1760254351225,1.01617071,111860.0,111850.0,0.30013718]
[1760254353175,0.36748735,111860.0,111850.0,0.30013718]
[1760254353386,1.01617071,111860.0,111850.0,0.30013718]
[1760254354034,0.36748735,111860.0,111850.0,0.30013718]
[1760254354453,1.01617071,111860.0,111850.0,0.30013718]
[1760254356886,0.36748735,111860.0,111850.0,0.30013718]
[1760254357103,0.36748735,111860.0,111850.0,0.0797]
[1760254357346,2.51731235,111860.0,111850.0,0.0797]
[1760254357562,1.84364899,111860.0,111850.0,0.0797]
[1760254359012,2.49233235,111860.0,111850.0,0.0797]
[1760254359834,1.84364899,111860.0,111850.0,0.09758109]
[1760254360052,1.84364899,111860.0,111850.0,0.1302467]
[1760254360222,0.54628227,111860.0,111850.0,0.1302467]
[1760254360459,1.84364899,111860.0,111850.0,0.1302467]
[1760254362639,1.6243981,111860.0,111850.0,0.1302467]
[1760254362837,1.6243981,111860.0,111850.0,0.3392095]
[1760254362838,1.29736672,111860.0,111850.0,0.3392095]
[1760254363194,1.5030626,111860.0,111850.0,0.32132841]
[1760254363339,0.02690096,111860.0,111850.0,0.32132841]
[1760254363533,1.32426768,111860.0,111850.0,0.32132841]
[1760254365593,0.67558432,111860.0,111850.0,0.32132841]
[1760254365744,0.51927815,111870.0,111860.0,0.17879492]
[1760254365946,0.51927815,111870.0,111860.0,0.30721725]
[1760254366149,0.51927815,111870.0,111860.0,0.12842233]
[1760254366409,0.3673976,111870.0,111860.0,0.33736915]
[1760254366547,0.00049847,111870.0,111860.0,0.33736915]
[1760254367886,0.00049847,111870.0,111860.0,0.33836915]
[1760254368698,0.00049847,111870.0,111860.0,0.33936915]
[1760254368920,0.00049847,111870.0,111860.0,1.0130525]
[1760254369122,0.00049847,111870.0,111860.0,1.11305249]
[1760254369974,0.00049847,111870.0,111860.0,0.46436913]
[1760254370221,0.64918183,111870.0,111860.0,0.46436913]
[1760254370771,1.47664412,111870.0,111860.0,0.08041]
[1760254371400,1.477226,111870.0,111860.0,0.08041]
[1760254371606,1.477226,111870.0,111860.0,0.07941]
[1760254371821,1.477226,111870.0,111860.0,0.08041]
[1760254372223,1.477226,111870.0,111860.0,0.07941]
[1760254372433,1.477226,111870.0,111860.0,0.11100729]
[1760254372632,1.477226,111870.0,111860.0,0.08041]
[1760254373036,1.477226,111870.0,111860.0,0.07941]
[1760254373247,1.817226,111870.0,111860.0,0.07941]
[1760254373630,1.817226,111870.0,111860.0,0.08041]
[1760254374732,1.842346,111870.0,111860.0,0.04156]
[1760254375434,1.842346,111870.0,111860.0,0.08041]
[1760254375654,1.817226,111870.0,111860.0,0.08041]
[1760254376421,1.842346,111870.0,111860.0,0.04156]
[1760254376830,1.842346,111870.0,111860.0,0.05110984]
[1760254377265,1.817226,111870.0,111860.0,0.08995984]
[1760254378641,1.842346,111870.0,111860.0,0.04156]
[1760254378893,2.54646936,111870.0,111860.0,0.04156]
[1760254379108,1.861286,111870.0,111860.0,0.04156]
[1760254379525,2.54646936,111870.0,111860.0,0.002]
[1760254379734,2.57387466,111870.0,111860.0,0.002]
[1760254380383,2.57387466,111870.0,111860.0,0.001]
[1760254381040,2.50996936,111870.0,111860.0,0.04056]
[1760254381524,2.57337614,111870.0,111860.0,0.01445]
[1760254381737,0.17879492,111860.0,111850.0,0.01508837]
[1760254381954,2.124845,111860.0,111850.0,0.05393837]
[1760254382171,2.124845,111860.0,111850.0,0.07904837]
[1760254382378,2.124845,111860.0,111850.0,0.09188221]
[1760254382829,2.149965,111860.0,111850.0,0.05303221]
[1760254383031,2.149965,111860.0,111850.0,0.05403221]
[1760254383453,2.149965,111860.0,111850.0,0.05503221]
[1760254383659,2.168905,111860.0,111850.0,0.05503221]
[1760254384291,2.168905,111860.0,111820.0,0.01493]
[1760254384292,0.17884288,111830.0,111820.0,0.01493]
[1760254384498,0.17884288,111830.0,111810.0,0.01574]
[1760254384499,0.51885888,111820.0,111810.0,0.01574]
[1760254384717,2.49211042,111820.0,111810.0,0.04085]
[1760254385161,2.51902753,111820.0,111810.0,0.04085]
[1760254385591,0.54577599,111820.0,111810.0,0.08905491]
[1760254385801,1.84453035,111820.0,111810.0,0.08905491]
[1760254386911,0.54577599,111820.0,111810.0,0.08905491]
[1760254387121,1.84453035,111820.0,111810.0,0.09005491]
[1760254387960,1.84453035,111820.0,111810.0,0.09105491]
[1760254388189,0.17887487,111810.0,111800.0,0.0376]
[1760254388400,0.82825205,111810.0,111800.0,0.03773399]
[1760254388608,1.16825205,111810.0,111800.0,0.21662486]
[1760254389432,1.16825205,111810.0,111800.0,0.03873399]
[1760254389632,1.16825205,111810.0,111800.0,0.06239246]
[1760254394237,0.51887487,111810.0,111800.0,0.08028154]
[1760254394434,1.16825205,111810.0,111800.0,0.24128333]
[1760254394686,1.16825205,111810.0,111800.0,0.24419475]
[1760254398668,1.16825205,111810.0,111800.0,0.24349719]
[1760254398881,1.16825205,111810.0,111800.0,0.06460632]
[1760254399977,0.82825205,111810.0,111800.0,0.06460632]
[1760254401519,1.47762923,111810.0,111800.0,0.06460632]
[1760254401743,1.47762923,111810.0,111800.0,0.04194785]
[1760254404544,1.86315923,111810.0,111800.0,0.04194785]
[1760254404753,2.55055641,111810.0,111800.0,0.04194785]
[1760254404956,2.55055641,111810.0,111800.0,0.00435313]
[1760254405250,2.57796171,111810.0,111800.0,0.00435313]
[1760254405663,1.92880931,111810.0,111800.0,0.00335313]
[1760254406058,1.92880931,111810.0,111800.0,0.00291142]
[1760254407071,1.90140401,111810.0,111800.0,0.00291142]
[1760254409914,0.51887487,111810.0,111800.0,0.00291142]
[1760254410229,0.82836444,111810.0,111800.0,0.18180229]
[1760254410432,0.82836444,111810.0,111800.0,0.21787309]
[1760254410635,1.16836444,111810.0,111800.0,0.21787309]
[1760254412945,1.16836444,111810.0,111800.0,0.21887309]
[1760254413071,1.81785401,111810.0,111800.0,0.21887309]
[1760254414284,0.51887487,111810.0,111800.0,0.21887309]
[1760254414533,1.16836444,111810.0,111800.0,0.25647309]
[1760254415408,0.51887487,111810.0,111800.0,0.25647309]
[1760254415628,1.16836444,111810.0,111800.0,0.22040229]
[1760254415841,1.16836444,111810.0,111800.0,0.04151142]
[1760254421180,0.51887487,111810.0,111800.0,0.04151142]
[1760254421391,1.16836444,111810.0,111800.0,0.04151142]
[1760254423396,1.81785401,111810.0,111800.0,0.04151142]
[1760254423802,1.81785401,111810.0,111800.0,0.06355313]
[1760254425530,1.16836444,111810.0,111800.0,0.06355313]
[1760254425747,1.81785401,111810.0,111800.0,0.06355313]
[1760254426491,1.81785401,111810.0,111800.0,0.04151142]
[1760254430700,0.51887487,111810.0,111800.0,0.04151142]
[1760254431069,1.16836444,111810.0,111800.0,0.04151142]
[1760254431841,1.81785401,111810.0,111800.0,0.04151142]
[1760254433484,0.51887487,111810.0,111800.0,0.04151142]
[1760254433685,1.81785401,111810.0,111800.0,0.06355313]
[1760254434129,1.16836444,111810.0,111800.0,0.06355313]
[1760254435072,1.86203401,111810.0,111800.0,0.06355313]
[1760254435258,1.92820948,111810.0,111800.0,0.04151142]
[1760254436215,1.88894948,111810.0,111800.0,0.04151142]
[1760254438025,1.86327948,111810.0,111800.0,0.04151142]
[1760254438169,1.88894948,111810.0,111800.0,0.04151142]
[1760254438374,1.92820948,111810.0,111800.0,0.04151142]
[1760254439161,1.92820948,111810.0,111800.0,0.04051142]
[1760254439390,1.88894948,111810.0,111800.0,0.04051142]
[1760254439832,1.84476948,111810.0,111800.0,0.04051142]
[1760254440030,0.54579034,111810.0,111800.0,0.04051142]
[1760254440264,0.54579034,111810.0,111800.0,0.04635163]
[1760254440412,1.84476948,111810.0,111800.0,0.04635163]
[1760254441341,1.84476948,111810.0,111800.0,0.04051142]
[1760254441680,1.84476948,111810.0,111800.0,0.04151142]
[1760254448230,1.84476948,111810.0,111800.0,0.00391142]
[1760254448853,1.86962948,111810.0,111800.0,0.00391142]
[1760254449052,1.84476948,111810.0,111800.0,0.00391142]
[1760254450250,0.20579034,111810.0,111800.0,0.00391142]
[1760254450463,1.50476948,111810.0,111800.0,0.00391142]
[1760254452364,1.86962948,111810.0,111800.0,0.00391142]
[1760254452583,1.84476948,111810.0,111800.0,0.00391142]
[1760254453667,0.54579034,111810.0,111800.0,0.00391142]
[1760254453874,1.84476948,111810.0,111800.0,0.00391142]
[1760254463504,0.54579034,111810.0,111800.0,0.00391142]
[1760254463730,1.84476948,111810.0,111800.0,0.00391142]
[1760254465166,0.54579034,111810.0,111800.0,0.00391142]
[1760254465370,1.84476948,111810.0,111800.0,0.00391142]
[1760254467658,1.84419566,111810.0,111800.0,0.00391142]
[1760254468511,0.36691547,111810.0,111800.0,0.00391142]
[1760254468720,0.64920266,111810.0,111800.0,0.20069137]
[1760254468925,0.98920266,111810.0,111800.0,0.22452184]
[1760254469138,0.64920266,111810.0,111800.0,0.22452184]
[1760254469374,0.98920266,111810.0,111800.0,0.22452184]
[1760254470856,1.16807753,111810.0,111800.0,0.22452184]
[1760254471069,0.98920266,111810.0,111800.0,0.22452184]
[1760254472120,0.64920266,111810.0,111800.0,0.22452184]
[1760254474640,0.82807753,111810.0,111800.0,0.22452184]
[1760254474830,0.20577431,111820.0,111800.0,0.22452184]
[1760254475048,0.64920266,111810.0,111800.0,0.22161042]
[1760254475907,0.64920266,111810.0,111800.0,0.22061042]
[1760254477198,0.64920266,111810.0,111800.0,0.22161042]
[1760254477420,0.36572767,111820.0,111810.0,0.17887487]
[1760254477646,0.64920266,111830.0,111820.0,0.17885888]
[1760254477859,0.98920266,111830.0,111820.0,0.17885888]
[1760254478732,1.16804554,111830.0,111820.0,0.17885888]
[1760254478954,0.98920266,111830.0,111820.0,0.17885888]
[1760254479176,0.98920266,111830.0,111820.0,0.17985888]
[1760254479384,0.98920266,111830.0,111820.0,0.2227523]
[1760254480274,0.64920266,111830.0,111820.0,0.2227523]
[1760254480483,0.98920266,111830.0,111820.0,0.2227523]
[1760254480692,0.98920266,111830.0,111820.0,0.22449883]
[1760254480907,0.98920266,111830.0,111820.0,0.22549883]
[1760254481404,0.34,111830.0,111820.0,0.22549883]
[1760254481610,0.98920266,111830.0,111820.0,0.22549883]
[1760254483762,0.34,111840.0,111830.0,0.17884288]
[1760254483974,0.98920266,111840.0,111830.0,0.24143103]
[1760254484180,0.98920266,111840.0,111830.0,0.27903103]
[1760254485030,0.34,111840.0,111830.0,0.27903103]
[1760254485239,1.63840532,111840.0,111830.0,0.28003103]
[1760254485850,0.34,111840.0,111830.0,0.28003103]
[1760254486051,1.63840532,111840.0,111830.0,0.28003103]
[1760254486453,1.63840532,111840.0,111830.0,0.28103103]
[1760254487241,0.98920266,111840.0,111830.0,0.28103103]
[1760254489333,0.98920266,111840.0,111830.0,0.28219527]
[1760254491494,1.63840532,111840.0,111830.0,0.28219527]
[1760254492657,1.63840532,111840.0,111830.0,0.25204337]
[1760254494252,1.63840532,111840.0,111830.0,0.28219527]
[1760254495971,0.54571536,111850.0,111840.0,0.17882689]
[1760254496086,0.54571536,111850.0,111840.0,0.22054644]
[1760254496933,0.54571536,111850.0,111840.0,0.04171955]
[1760254497132,1.84412068,111850.0,111840.0,0.04276953]
[1760254498210,1.84412068,111850.0,111840.0,0.00104998]
[1760254498435,1.92388068,111850.0,111840.0,0.00104998]
[1760254498655,2.57308334,111850.0,111840.0,0.00104998]
[1760254499099,2.60236157,111850.0,111840.0,0.00104998]
[1760254499735,4.54996955,111850.0,111840.0,1e-08]
[1760254500610,0.51884288,111830.0,111820.0,0.0376]
[1760254500825,1.21589377,111830.0,111820.0,0.03765002]
[1760254501045,1.27708377,111830.0,111820.0,0.03765002]
[1760254501262,1.30399731,111830.0,111820.0,0.03765002]
[1760254501485,1.95319997,111830.0,111820.0,0.03765002]
[1760254501941,1.95319997,111830.0,111820.0,0.03939655]
[1760254502167,1.84416174,111830.0,111820.0,0.03939655]
[1760254502378,1.84416174,111830.0,111820.0,0.04512495]
[1760254502586,1.86914174,111830.0,111820.0,0.04512495]
[1760254502817,1.88771174,111830.0,111820.0,0.04039655]
[1760254503032,2.5731244,111830.0,111820.0,0.04039655]
[1760254504958,2.5731244,111830.0,111820.0,0.03939655]
[1760254505161,2.60240263,111830.0,111820.0,0.03939655]
[1760254507755,2.60240263,111830.0,111820.0,0.00179655]
[1760254507756,4.55001061,111830.0,111820.0,0.00179655]
[1760254507969,4.55001061,111830.0,111820.0,0.00110949]
[1760254508598,2.69112197,111830.0,111820.0,0.00110949]
[1760254508808,2.60240263,111830.0,111820.0,0.00110949]
[1760254512966,4.55001061,111830.0,111820.0,0.00110949]
[1760254513150,2.60240263,111830.0,111820.0,0.00110949]
[1760254513975,2.5731244,111830.0,111820.0,0.00110949]
[1760254515224,2.38288381,111830.0,111820.0,0.00110949]
[1760254515429,2.56172669,111830.0,111820.0,0.00110949]
[1760254517524,4.50933467,111830.0,111820.0,0.00110949]
[1760254517726,2.56172669,111830.0,111820.0,0.00110949]
[1760254520222,0.51889087,111800.0,111790.0,0.0376]
[1760254520418,2.48606885,111800.0,111790.0,0.04857237]
[1760254520674,2.50969885,111800.0,111790.0,0.05031961]
[1760254521005,2.53661611,111800.0,111790.0,0.03939725]
[1760254521522,2.53661611,111800.0,111790.0,0.04039725]
[1760254521878,2.53661611,111800.0,111790.0,0.04139725]
[1760254522850,2.57199611,111800.0,111790.0,0.04139725]
[1760254523870,2.53661611,111800.0,111790.0,0.04139725]
[1760254524069,2.53661611,111800.0,111790.0,0.04039725]
[1760254524384,2.53661611,111800.0,111790.0,0.03939725]
[1760254524814,2.53661611,111800.0,111790.0,0.04039725]
[1760254526277,2.51298611,111800.0,111790.0,0.04039725]
[1760254526482,2.53661611,111800.0,111790.0,0.04039725]
[1760254527430,1.88793695,111800.0,111790.0,0.04039725]
[1760254529228,1.23847254,111800.0,111790.0,0.04039725]
[1760254529483,1.23847254,111800.0,111790.0,0.0462262]
[1760254530944,1.23847254,111800.0,111790.0,0.04039725]
[1760254532554,1.88793695,111800.0,111790.0,0.04039725]
[1760254533389,1.84473695,111800.0,111790.0,0.04039725]
[1760254533601,1.86836695,111800.0,111790.0,0.04039725]
[1760254533877,1.21890254,111800.0,111790.0,0.04039725]
[1760254534556,1.2188673,111800.0,111790.0,0.04039725]
[1760254539533,1.2188673,111800.0,111790.0,0.00279725]
[1760254539987,1.1952373,111800.0,111790.0,0.00279725]
[1760254542013,0.36691726,111800.0,111790.0,0.18170412]
[1760254542230,0.36691726,111800.0,111790.0,0.25347075]
[1760254542231,0.64942917,111800.0,111790.0,0.25347075]
[1760254542420,0.98942917,111800.0,111790.0,0.25347075]
[1760254542659,0.64942917,111800.0,111790.0,0.25347075]
[1760254546901,0.54579129,111810.0,111800.0,0.17889087]
[1760254547103,1.19522046,111810.0,111800.0,0.17889087]
[1760254547307,1.19522046,111810.0,111800.0,0.22311703]
[1760254548070,1.84464963,111810.0,111800.0,0.22311703]
[1760254548429,1.19522046,111810.0,111800.0,0.22511703]
[1760254550199,1.19487697,111810.0,111800.0,0.22511703]
[1760254551287,0.18782984,111820.0,111810.0,0.20902677]
[1760254551288,0.64908568,111820.0,111810.0,0.20902677]
[1760254551488,0.64908568,111820.0,111810.0,0.25545634]
[1760254551690,1.01599463,111820.0,111810.0,0.25545634]
[1760254551861,1.01599463,111820.0,111810.0,0.25603865]
[1760254552102,0.98908568,111820.0,111810.0,0.25603865]
[1760254553056,0.98908568,111820.0,111810.0,0.25703865]
[1760254553693,0.98908568,111820.0,111810.0,0.25803865]
[1760254557753,0.98908568,111820.0,111810.0,0.22788675]
[1760254558168,0.34,111820.0,111810.0,0.25803865]
[1760254558377,0.98908568,111820.0,111810.0,0.25803865]
[1760254558587,0.98908568,111820.0,111810.0,0.29563865]
[1760254558801,1.16794456,111820.0,111810.0,0.29563865]
[1760254559012,0.98908568,111820.0,111810.0,0.29563865]
[1760254559229,1.16794456,111820.0,111810.0,0.29563865]
[1760254560174,0.51885888,111820.0,111810.0,0.29563865]
[1760254560370,0.98908568,111820.0,111810.0,0.29563865]
[1760254561179,1.16794456,111820.0,111810.0,0.26548675]
[1760254561463,1.16794456,111820.0,111810.0,0.08661188]
[1760254561595,0.82794456,111820.0,111810.0,0.04018231]
[1760254562007,0.82794456,111820.0,111810.0,0.24920908]
[1760254562008,0.64908568,111820.0,111810.0,0.24920908]
[1760254562672,0.82794456,111820.0,111810.0,0.24920908]
[1760254564365,0.82794456,111820.0,111810.0,0.07033421]
[1760254564599,0.82794456,111820.0,111810.0,0.10206232]
[1760254565581,0.82794456,111820.0,111810.0,0.07191042]
[1760254568293,1.50228024,111820.0,111810.0,0.04018231]
[1760254568536,1.47703024,111820.0,111810.0,0.04018231]
[1760254571070,0.82794456,111820.0,111810.0,0.04018231]
[1760254572783,1.81703024,111820.0,111810.0,0.04018231]
[1760254574550,0.51885888,111820.0,111810.0,0.04018231]
[1760254574777,1.81703024,111820.0,111810.0,0.06639573]
[1760254575693,0.51885888,111820.0,111810.0,0.06639573]
[1760254575902,1.81703024,111820.0,111810.0,0.06639573]
[1760254576126,1.16794456,111820.0,111810.0,0.06639573]
[1760254577630,1.81703024,111820.0,111810.0,0.06639573]
[1760254578275,1.16794456,111820.0,111810.0,0.26315808]
[1760254578499,1.16794456,111820.0,111810.0,0.2452706]
[1760254578724,0.82794456,111820.0,111810.0,0.2452706]
[1760254582315,0.64908568,111820.0,111810.0,0.2754225]
[1760254587033,0.82794456,111820.0,111810.0,0.2754225]
[1760254587411,0.82783821,111820.0,111810.0,0.2754225]
[1760254587615,1.47681754,111820.0,111810.0,0.2754225]
[1760254589436,1.47681754,111820.0,111810.0,0.2452706]
[1760254589643,1.29795866,111820.0,111810.0,0.2754225]
[1760254591808,0.17980484,111830.0,111810.0,0.2754225]
[1760254592013,0.51980215,111830.0,111820.0,0.17885888]
[1760254592215,1.16878148,111830.0,111810.0,0.2754225]
[1760254592414,0.64897933,111820.0,111810.0,0.2754225]
[1760254592919,0.64897933,111820.0,111810.0,0.2744225]
[1760254593120,0.64897933,111820.0,111810.0,0.2432706]
[1760254594242,0.64897933,111820.0,111810.0,0.2754225]
[1760254594446,1.47681754,111820.0,111810.0,0.2754225]
[1760254594853,1.47681754,111820.0,111810.0,0.2744225]
[1760254595191,1.47681754,111820.0,111810.0,0.2754225]
[1760254597392,1.16783821,111820.0,111810.0,0.2754225]
[1760254597658,1.81563923,111820.0,111810.0,0.2754225]
[1760254597862,1.81476615,111820.0,111810.0,0.2754225]
[1760254598065,1.81416195,111820.0,111810.0,0.2754225]
[1760254598201,1.81385769,111820.0,111810.0,0.2754225]
[1760254598402,1.81326236,111820.0,111810.0,0.2754225]
[1760254598598,1.81237547,111820.0,111810.0,0.2754225]
[1760254598803,1.81237547,111820.0,111810.0,0.09654763]
[1760254598804,1.81148852,111820.0,111810.0,0.09654763]
[1760254599007,1.81060915,111820.0,111810.0,0.2754225]
[1760254599469,1.81002679,111820.0,111810.0,0.2754225]
[1760254599614,1.80915803,111820.0,111810.0,0.2754225]
[1760254599815,1.80825857,111820.0,111810.0,0.2754225]
[1760254600116,1.80767335,111820.0,111810.0,0.2754225]
[1760254600337,1.80739086,111820.0,111810.0,0.2754225]
[1760254600540,1.8065088,111820.0,111810.0,0.2754225]
[1760254600738,1.80559124,111820.0,111810.0,0.2754225]
[1760254600981,1.80474512,111820.0,111810.0,0.2754225]
[1760254601162,1.80416932,111820.0,111810.0,0.2754225]
[1760254602540,1.63795866,111820.0,111810.0,0.2754225]
[1760254603689,1.81681754,111820.0,111810.0,0.2754225]
[1760254603889,1.63795866,111820.0,111810.0,0.2754225]
[1760254604295,0.98897933,111820.0,111810.0,0.2754225]
[1760254605489,0.64897933,111820.0,111810.0,0.2754225]
[1760254605714,0.98897933,111820.0,111810.0,0.2754225]
[1760254607530,0.64897933,111820.0,111810.0,0.2754225]
[1760254608054,0.17980215,111830.0,111820.0,0.17885888]
[1760254608055,0.34095864,111830.0,111820.0,0.17885888]
[1760254608265,0.64993797,111830.0,111820.0,0.22678702]
[1760254608678,0.00095864,111830.0,111820.0,0.22678702]
[1760254608801,0.64993797,111830.0,111820.0,0.22678702]